fUST/lending_fUST_20240511
["ID","MTS","AMOUNT","RATE_DAILY","PERIOD"]
[326797006,1715381469552,-500.0,0.00058082,120]
[326797007,1715381469562,-501.21,0.00058082,120]
[326797008,1715381469572,-500.0,0.00058082,120]
[326797009,1715381469581,-500.0,0.00058082,120]
[326797010,1715381469590,-598.13,0.00058082,120]
[326797011,1715381469600,-500.0,0.00058082,120]
[326797012,1715381469610,-967.26,0.00058082,120]
[326797013,1715381469620,-819.54,0.00058082,120]
[326797014,1715381469630,-500.0,0.00058082,120]
[326797015,1715381469639,-500.0,0.00058082,120]
[326797016,1715381469649,-500.0,0.00058082,120]
[326797017,1715381469658,-500.0,0.00058082,120]
[326797018,1715381469668,-500.0,0.00058082,120]
[326797019,1715381469678,-500.0,0.00058082,120]
[326797020,1715381469687,-220.9512375,0.00058082,120]
[326797021,1715381469697,-500.0,0.00058082,120]
[326797022,1715381469708,-620.58,0.00058082,120]
[326797023,1715381469718,-500.0,0.00058082,120]
[326797024,1715381469727,-500.0,0.00058082,120]
[326797025,1715381469737,-594.58,0.00058082,120]
[326797026,1715381469746,-500.0,0.00058082,120]
[326797027,1715381469755,-1000.0,0.00058082,120]
[326797028,1715381469765,-500.0,0.00058082,120]
[326797029,1715381469774,-819.92,0.00058082,120]
[326797030,1715381469783,-500.0,0.00058082,120]
[326797031,1715381469792,-678.91,0.00058082,120]
[326797032,1715381469802,-500.0,0.00058082,120]
[326797033,1715381469811,-500.0,0.00058082,120]
[326797034,1715381469821,-610.7,0.00058082,120]
[326797035,1715381469831,-648.3,0.00058082,120]
[326797036,1715381469840,-500.0,0.00058082,120]
[326797037,1715381469850,-500.0,0.00058082,120]
[326797038,1715381469859,-500.0,0.00058082,120]
[326797039,1715381469869,-873.9,0.00058082,120]
[326797040,1715381469878,-500.0,0.00058082,120]
[326797041,1715381469887,-539.10624572,0.00058082,120]
[326797042,1715381469897,-780.28,0.00058082,120]
[326797043,1715381469907,-2756.4,0.00058082,120]
[326797044,1715381469916,-500.0,0.00058082,120]
[326797045,1715381469926,-500.0,0.00058082,120]
[326797046,1715381469936,-500.0,0.00058082,120]
[326797047,1715381469946,-500.0,0.00058082,120]
[326797048,1715381469957,-500.0,0.00058082,120]
[326797049,1715381469967,-1210.86,0.00058082,120]
[326797050,1715381469977,-360.351349,0.00058082,120]
[326797051,1715381469987,-500.0,0.00058082,120]
[326797052,1715381469997,-1070.89,0.00058082,120]
[326797053,1715381470007,-500.0,0.00058082,120]
[326797054,1715381470016,-500.0,0.00058082,120]
[326797055,1715381470025,-500.0,0.00058082,120]
[326797056,1715381470035,-1070.51,0.00058082,120]
[326797057,1715381470044,-500.0,0.00058082,120]
[326797058,1715381470054,-757.61,0.00058082,120]
[326797059,1715381470063,-4210.69,0.00058082,120]
[326797060,1715381470073,-2993.37,0.00058082,120]
[326797061,1715381470082,-551.15,0.00058082,120]
[326797062,1715381470092,-500.0,0.00058082,120]
[326797063,1715381470101,-500.0,0.00058082,120]
[326797064,1715381470111,-500.0,0.00058082,120]
[326797065,1715381470121,-733.98,0.00058082,120]
[326797066,1715381470130,-500.0,0.00058082,120]
[326797067,1715381470139,-500.0,0.00058082,120]
[326797068,1715381470148,-500.0,0.00058082,120]
[326797069,1715381470157,-500.0,0.00058082,120]
[326797070,1715381470170,-500.0,0.00058082,120]
[326797071,1715381470179,-4672.91,0.00058082,120]
[326797072,1715381470188,-500.0,0.00058082,120]
[326797073,1715381470198,-1818.74,0.00058082,120]
[326797074,1715381470208,-500.0,0.00058082,120]
[326797075,1715381470218,-500.0,0.00058082,120]
[326797076,1715381470227,-1000.0,0.00058082,120]
[326797077,1715381470237,-500.0,0.00058082,120]
[326797078,1715381470250,-527.33,0.00058082,120]
[326797079,1715381470259,-500.0,0.00058082,120]
[326797080,1715381470269,-500.0,0.00058082,120]
[326797081,1715381470279,-500.0,0.00058082,120]
[326797082,1715381470288,-500.0,0.00058082,120]
[326797083,1715381470297,-500.0,0.00058082,120]
[326797084,1715381470307,-500.0,0.00058082,120]
[326797085,1715381470317,-500.0,0.00058082,120]
[326797086,1715381470327,-500.0,0.00058082,120]
[326797087,1715381470337,-500.0,0.00058082,120]
[326797088,1715381470347,-500.0,0.00058082,120]
[326797089,1715381470357,-580.1,0.00058082,120]
[326797090,1715381470366,-500.0,0.00058082,120]
[326797091,1715381470375,-1189.78,0.00058082,120]
[326797092,1715381470385,-500.0,0.00058082,120]
[326797093,1715381470395,-837.42,0.00058082,120]
[326797094,1715381470405,-599.74,0.00058082,120]
[326797095,1715381470415,-500.0,0.00058082,120]
[326797096,1715381470425,-500.0,0.00058082,120]
[326797097,1715381470434,-546.61411616,0.00058082,120]
[326797098,1715381470445,-1366.53,0.00058082,7]
[326797099,1715381470455,-500.0,0.00058082,120]
[326797100,1715381470467,-500.0,0.00058082,120]
[326797101,1715381470477,-444.76641056,0.00058082,120]
[326797102,1715381470487,-500.0,0.00058082,120]
[326797103,1715381470496,-500.0,0.00058082,120]
[326797104,1715381470505,-500.0,0.00058082,120]
[326797105,1715381470515,-500.0,0.00058082,120]
[326797106,1715381470525,-549.67,0.00058082,120]
[326797107,1715381470535,-638.03,0.00058082,120]
[326797108,1715381470545,-500.0,0.00058082,120]
[326797109,1715381470556,-500.0,0.00058082,120]
[326797110,1715381470566,-500.0,0.00058082,120]
[326797111,1715381470575,-9331.73,0.00058082,120]
[326797112,1715381470585,-500.0,0.00058082,120]
[326797113,1715381470595,-500.0,0.00058082,120]
[326797114,1715381470605,-2272.92,0.00058082,120]
[326797115,1715381470615,-511.57401884,0.00058082,120]
[326797116,1715381470625,-623.13,0.00058082,120]
[326797117,1715381470636,-500.0,0.00058082,120]
[326797118,1715381470646,-500.0,0.00058082,120]
[326797119,1715381470656,-3952.33,0.00058082,120]
[326797120,1715381470666,-1021.55,0.00058082,120]
[326797121,1715381470676,-728.64,0.00058082,120]
[326797122,1715381470686,-570.68,0.00058082,120]
[326797123,1715381470695,-500.0,0.00058082,120]
[326797124,1715381470705,-7667.9,0.00058082,120]
[326797125,1715381470719,-500.0,0.00058082,120]
[326797126,1715381470728,-3673.96,0.00058082,120]
[326797127,1715381470738,-500.0,0.00058082,120]
[326797128,1715381470747,-500.0,0.00058082,120]
[326797129,1715381470757,-500.0,0.00058082,120]
[326797130,1715381470766,-500.0,0.00058082,120]
[326797131,1715381470776,-500.0,0.00058082,120]
[326797132,1715381470785,-500.0,0.00058082,120]
[326797133,1715381470795,-2110.2,0.00058082,120]
[326797134,1715381470804,-500.0,0.00058082,120]
[326797135,1715381470814,-500.0,0.00058082,120]
[326797136,1715381470824,-500.0,0.00058082,120]
[326797137,1715381470833,-500.0,0.00058082,120]
[326797138,1715381470842,-220.20374985,0.00058082,120]
[326797139,1715381470851,-1410.23,0.00058082,120]
[326797140,1715381470860,-1154.88,0.00058082,120]
[326797141,1715381470869,-8703.16,0.00058082,120]
[326797142,1715381470879,-536.24,0.00058082,120]
[326797143,1715381470888,-751.25,0.00058082,120]
[326797144,1715381470898,-500.0,0.00058082,120]
[326797145,1715381470907,-500.0,0.00058082,120]
[326797146,1715381470916,-500.0,0.00058082,120]
[326797147,1715381470925,-745.85,0.00058082,120]
[326797148,1715381470934,-500.0,0.00058082,120]
[326797149,1715381470943,-500.0,0.00058082,120]
[326797150,1715381470952,-1112.7,0.00058082,120]
[326797151,1715381470964,-500.0,0.00058082,120]
[326797152,1715381470974,-3156.04,0.00058082,120]
[326797153,1715381470983,-500.0,0.00058082,120]
[326797154,1715381470993,-1283.02,0.00058082,120]
[326797155,1715381471002,-1747.91,0.00058082,120]
[326797156,1715381471012,-500.0,0.00058082,120]
[326797157,1715381471022,-500.0,0.00058082,120]
[326797158,1715381471032,-500.0,0.00058082,120]
[326797159,1715381471041,-500.0,0.00058082,120]
[326797160,1715381471050,-924.27,0.00058082,120]
[326797161,1715381471059,-500.0,0.00058082,120]
[326797162,1715381471069,-500.0,0.00058082,120]
[326797163,1715381471079,-500.0,0.00058082,120]
[326797164,1715381471088,-585.25,0.00058082,120]
[326797165,1715381471097,-500.0,0.00058082,120]
[326797166,1715381471107,-500.0,0.00058082,120]
[326797167,1715381471116,-790.87,0.00058082,120]
[326797168,1715381471126,-500.0,0.00058082,120]
[326797169,1715381471136,-500.0,0.00058082,120]
[326797170,1715381471145,-1269.11,0.00058082,120]
[326797171,1715381471154,-5883.06,0.00058082,120]
[326797172,1715381471164,-1859.96,0.00058082,120]
[326797173,1715381471179,-500.0,0.00058082,120]
[326797174,1715381471188,-500.0,0.00058082,120]
[326797175,1715381471198,-1701.09,0.00058082,120]
[326797176,1715381471209,-500.0,0.00058082,120]
[326797177,1715381471219,-632.32,0.00058082,60]
[326797178,1715381471228,-1691.53,0.00058082,120]
[326797179,1715381471237,-3991.97,0.00058082,120]
[326797180,1715381471247,-592.96,0.00058082,120]
[326797181,1715381471256,-500.0,0.00058082,120]
[326797182,1715381471266,-783.68,0.00058082,120]
[326797183,1715381471275,-4891.99,0.00058082,21]
[326797184,1715381471285,-2531.38,0.00058082,120]
[326797185,1715381471294,-500.0,0.00058082,120]
[326797186,1715381471303,-500.0,0.00058082,120]
[326797187,1715381471313,-2025.54,0.00058082,120]
[326797188,1715381471323,-500.0,0.00058082,120]
[326797189,1715381471332,-906.96,0.00058082,120]
[326797190,1715381471343,-47405.75,0.00058082,120]
[326797191,1715381471352,-2056.13,0.00058082,120]
[326797192,1715381471362,-500.0,0.00058082,120]
[326797193,1715381471371,-643.51,0.00058082,120]
[326797194,1715381471380,-852.8,0.00058082,120]
[326797195,1715381471390,-8527.55,0.00058082,120]
[326797196,1715381471399,-972.54,0.00058082,120]
[326797197,1715381471408,-500.0,0.00058082,120]
[326797198,1715381471541,-500.0,0.00058082,120]
[326797199,1715381471553,-500.0,0.00058082,120]
[326797200,1715381471563,-1320.33,0.00058082,2]
[326797201,1715381471572,-3524.89,0.00058082,2]
[326797202,1715381471581,-546.11,0.00058082,120]
[326797203,1715381471591,-500.0,0.00058082,120]
[326797204,1715381471600,-500.0,0.00058082,120]
[326797205,1715381471609,-560.85,0.00058082,120]
[326797206,1715381471619,-500.0,0.00058082,120]
[326797207,1715381471629,-715.77,0.00058082,120]
[326797208,1715381471638,-728.84,0.00058082,120]
[326797209,1715381471648,-1524.6,0.00058082,120]
[326797210,1715381471657,-500.0,0.00058082,120]
[326797211,1715381471666,-500.0,0.00058082,120]
[326797212,1715381471675,-2617.66,0.00058082,120]
[326797213,1715381471685,-500.0,0.00058082,120]
[326797214,1715381471694,-1552.09,0.00058082,120]
[326797215,1715381471703,-1408.03,0.00058082,120]
[326797216,1715381471715,-500.0,0.00058082,120]
[326797217,1715381471724,-709.54,0.00058082,120]
[326797218,1715381471733,-2955.83,0.00058082,120]
[326797219,1715381471743,-500.0,0.00058082,120]
[326797220,1715381471752,-671.41,0.00058082,120]
[326797221,1715381471761,-500.0,0.00058082,120]
[326797222,1715381471771,-584.89370412,0.00058082,120]
[326797223,1715381471780,-500.0,0.00058082,120]
[326797224,1715381471790,-679.75,0.00058082,120]
[326797225,1715381471800,-500.0,0.00058082,120]
[326797226,1715381471810,-525.15,0.00058082,120]
[326797227,1715381471820,-17679.9,0.00058082,120]
[326797228,1715381471829,-500.0,0.00058082,120]
[326797229,1715381471840,-1500.0,0.00058082,120]
[326797230,1715381471849,-500.0,0.00058082,120]
[326797231,1715381471858,-4314.35,0.00058082,120]
[326797232,1715381471868,-500.0,0.00058082,120]
[326797233,1715381471878,-500.0,0.00058082,2]
[326797234,1715381471887,-500.0,0.00058082,120]
[326797235,1715381471897,-500.0,0.00058082,120]
[326797236,1715381471907,-680.13,0.00058082,120]
[326797237,1715381471916,-500.0,0.00058082,120]
[326797238,1715381471926,-500.0,0.00058082,120]
[326797239,1715381471935,-500.0,0.00058082,120]
[326797240,1715381471944,-9229.8,0.00058082,120]
[326797241,1715381471954,-990.56,0.00058082,120]
[326797242,1715381471964,-500.0,0.00058082,120]
[326797243,1715381471974,-500.0,0.00058082,120]
[326797244,1715381471983,-500.0,0.00058082,120]
[326797245,1715381471993,-1953.0,0.00058082,120]
[326797246,1715381472002,-500.0,0.00058082,120]
[326797247,1715381472011,-1273.71,0.00058082,120]
[326797248,1715381472021,-510.44,0.00058082,2]
[326797249,1715381472030,-1389.39,0.00058082,120]
[326797250,1715381472039,-300.0,0.00058082,7]
[326797251,1715381472048,-3744.03,0.00058082,120]
[326797252,1715381472057,-1011.1,0.00058082,120]
[326797253,1715381472066,-500.0,0.00058082,120]
[326797254,1715381472076,-650.98,0.00058082,120]
[326797255,1715381472085,-500.0,0.00058082,120]
[326797256,1715381472094,-5009.77,0.00058082,120]
[326797257,1715381472103,-500.0,0.00058082,120]
[326797258,1715381472112,-566.32,0.00058082,120]
[326797259,1715381472121,-510.05,0.00058082,120]
[326797260,1715381472131,-974.14542008,0.00058088,120]
[326797261,1715381472140,-150.0,0.00058126,2]
[326797262,1715381472150,-157.99940941,0.00058314,120]
[326797263,1715381472159,-527.0,0.000584,120]
[326797264,1715381472169,-153.0,0.00058575,2]
[326797265,1715381472180,-153.0,0.00058575,2]
[326797266,1715381472190,-150.97189535,0.00058674,120]
[326797267,1715381472199,-557.0,0.00058685,120]
[326797268,1715381472208,-557.0,0.00058685,120]
[326797269,1715381472218,-557.0,0.00058685,120]
[326797270,1715381472227,-557.0,0.00058685,120]
[326797271,1715381472236,-557.0,0.00058685,120]
[326797272,1715381472248,-557.0,0.00058685,120]
[326797273,1715381472257,-150.0,0.00058685,2]
[326797274,1715381472267,-974.14542008,0.00058693,120]
[326797275,1715381472276,-1412.8469889,0.00058707,120]
[326797276,1715381472285,-1412.8469889,0.00058801,120]
[326797277,1715381472294,-153.0,0.00058904,2]
[326797278,1715381472304,-153.0,0.00058904,2]
[326797279,1715381472314,-153.0,0.00058904,2]
[326797280,1715381472323,-153.0,0.00058904,2]
[326797281,1715381472332,-153.0,0.00058904,2]
[326797282,1715381472342,-153.0,0.00058904,2]
[326797283,1715381472351,-153.0,0.00058904,2]
[326797284,1715381472361,-1412.8469889,0.00059001,120]
[326797285,1715381472370,-500.0,0.00059178,120]
[326797286,1715381472379,-500.0,0.00059178,120]
[326797287,1715381472389,-500.0,0.00059178,120]
[326797288,1715381472398,-602.21,0.00059178,120]
[326797289,1715381472406,-500.0,0.00059178,120]
[326797290,1715381472416,-500.0,0.00059178,120]
[326797291,1715381472425,-500.0,0.00059178,120]
[326797292,1715381472435,-500.0,0.00059178,120]
[326797293,1715381472443,-500.0,0.00059178,120]
[326797294,1715381472452,-500.0,0.00059178,120]
[326797295,1715381472463,-500.0,0.00059178,120]
[326797296,1715381472472,-500.0,0.00059178,120]
[326797297,1715381472482,-1165.04,0.00059178,120]
[326797298,1715381472492,-500.0,0.00059178,120]
[326797299,1715381472500,-549.89,0.00059178,120]
[326797300,1715381472510,-500.0,0.00059178,7]
[326797301,1715381472520,-500.0,0.00059178,120]
[326797302,1715381472529,-500.0,0.00059178,120]
[326797303,1715381472538,-524.39329237,0.00059178,120]
[326797304,1715381472548,-500.0,0.00059178,120]
[326797305,1715381472557,-500.0,0.00059178,120]
[326797306,1715381472567,-500.0,0.00059178,120]
[326797307,1715381472576,-500.0,0.00059178,120]
[326797308,1715381472585,-2148.21,0.00059178,120]
[326797309,1715381472594,-609.89,0.00059178,120]
[326797310,1715381472604,-520.71853686,0.00059178,120]
[326797311,1715381472613,-500.0,0.00059178,120]
[326797312,1715381472622,-500.0,0.00059178,120]
[326797313,1715381472631,-500.0,0.00059178,120]
[326797314,1715381472640,-500.0,0.00059178,120]
[326797315,1715381472650,-500.0,0.00059178,120]
[326797316,1715381472659,-500.0,0.00059178,120]
[326797317,1715381472668,-500.0,0.00059178,120]
[326797318,1715381472677,-500.0,0.00059178,120]
[326797319,1715381472687,-500.0,0.00059178,120]
[326797320,1715381472696,-500.0,0.00059178,120]
[326797321,1715381472705,-500.0,0.00059178,120]
[326797322,1715381472716,-500.0,0.00059178,120]
[326797323,1715381472725,-416.45107086,0.00059178,120]
[326797324,1715381472733,-289.00511108,0.00059178,120]
[326797325,1715381472743,-574.68,0.00059178,120]
[326797326,1715381472752,-541.11,0.00059178,120]
[326797327,1715381472762,-500.0,0.00059178,120]
[326797328,1715381472771,-500.0,0.00059178,120]
[326797329,1715381472781,-500.0,0.00059178,120]
[326797330,1715381472791,-500.0,0.00059178,120]
[326797331,1715381472800,-500.0,0.00059178,120]
[326797332,1715381472810,-1271.67,0.00059178,7]
[326797333,1715381472819,-500.0,0.00059178,120]
[326797334,1715381472828,-500.0,0.00059178,120]
[326797335,1715381472838,-500.0,0.00059178,120]
[326797336,1715381472847,-1161.06,0.00059178,120]
[326797337,1715381472856,-500.0,0.00059178,120]
[326797338,1715381472865,-500.0,0.00059178,120]
[326797339,1715381472874,-500.0,0.00059178,120]
[326797340,1715381472883,-500.0,0.00059178,120]
[326797341,1715381472892,-500.0,0.00059178,120]
[326797342,1715381472901,-500.0,0.00059178,120]
[326797343,1715381472910,-500.0,0.00059178,120]
[326797344,1715381472920,-500.0,0.00059178,120]
[326797345,1715381472929,-280.98639087,0.00059178,120]
[326797346,1715381472938,-500.0,0.00059178,120]
[326797347,1715381472947,-500.0,0.00059178,120]
[326797348,1715381472956,-664.96,0.00059178,120]
[326797349,1715381472967,-536.88381219,0.00059178,120]
[326797350,1715381472976,-500.0,0.00059178,120]
[326797351,1715381472985,-606.82,0.00059178,120]
[326797352,1715381472995,-500.0,0.00059178,120]
[326797353,1715381473004,-2047.19,0.00059178,120]
[326797354,1715381473013,-500.0,0.00059178,120]
[326797355,1715381473022,-666.88,0.00059178,120]
[326797356,1715381473031,-2115.98,0.00059178,4]
[326797357,1715381473041,-744.8,0.00059178,120]
[326797358,1715381473050,-473.72170624,0.00059178,120]
[326797359,1715381473058,-671.73,0.00059178,120]
[326797360,1715381473068,-2379.45,0.00059178,120]
[326797361,1715381473078,-1253.15,0.00059178,120]
[326797362,1715381473091,-591.68,0.00059178,120]
[326797363,1715381473101,-500.0,0.00059178,120]
[326797364,1715381473110,-500.0,0.00059178,120]
[326797365,1715381473120,-576.78,0.00059178,120]
[326797366,1715381473129,-500.0,0.00059178,120]
[326797367,1715381473138,-500.0,0.00059178,120]
[326797368,1715381473147,-534.42,0.00059178,120]
[326797369,1715381473156,-500.0,0.00059178,120]
[326797370,1715381473165,-500.0,0.00059178,120]
[326797371,1715381473178,-500.0,0.00059178,120]
[326797372,1715381473187,-500.0,0.00059178,120]
[326797373,1715381473196,-1078.44,0.00059178,120]
[326797374,1715381473206,-500.0,0.00059178,120]
[326797375,1715381473216,-500.0,0.00059178,120]
[326797376,1715381473226,-500.0,0.00059178,120]
[326797377,1715381473235,-1489.95,0.00059178,120]
[326797378,1715381473244,-500.0,0.00059178,120]
[326797379,1715381473255,-500.0,0.00059178,120]
[326797380,1715381473264,-500.0,0.00059178,120]
[326797381,1715381473273,-500.0,0.00059178,120]
[326797382,1715381473282,-1505.02,0.00059178,120]
[326797383,1715381473291,-500.0,0.00059178,2]
[326797384,1715381473301,-500.0,0.00059178,120]
[326797385,1715381473310,-821.7,0.00059178,120]
[326797386,1715381473319,-847.21,0.00059178,120]
[326797387,1715381473328,-500.0,0.00059178,120]
[326797388,1715381473338,-520.6953579,0.00059178,120]
[326797389,1715381473348,-500.0,0.00059178,120]
[326797390,1715381473357,-628.2624107,0.00059178,120]
[326797391,1715381473366,-1744.14,0.00059178,2]
[326797392,1715381473375,-1487.03,0.00059178,120]
[326797393,1715381473384,-239.17004632,0.00059178,120]
[326797394,1715381473393,-500.0,0.00059178,120]
[326797395,1715381473403,-500.0,0.00059178,120]
[326797396,1715381473411,-500.0,0.00059178,120]
[326797397,1715381473420,-500.0,0.00059178,120]
[326797398,1715381473429,-500.0,0.00059178,120]
[326797399,1715381473439,-621.58,0.00059178,120]
[326797400,1715381473448,-500.0,0.00059178,120]
[326797401,1715381473457,-500.0,0.00059178,120]
[326797402,1715381473467,-2725.02,0.00059178,120]
[326797403,1715381473476,-1524.58,0.00059178,120]
[326797404,1715381473486,-500.0,0.00059178,120]
[326797405,1715381473495,-550.87,0.00059178,120]
[326797406,1715381473504,-500.0,0.00059178,120]
[326797407,1715381473513,-500.0,0.00059178,120]
[326797408,1715381473522,-500.0,0.00059178,120]
[326797409,1715381473531,-670.43,0.00059178,120]
[326797410,1715381473540,-1135.37,0.00059178,120]
[326797411,1715381473549,-475.46074641,0.00059178,120]
[326797412,1715381473558,-515.4,0.00059178,120]
[326797413,1715381473567,-500.0,0.00059178,120]
[326797414,1715381473576,-700.54,0.00059178,120]
[326797415,1715381473585,-565.96,0.00059178,120]
[326797416,1715381473594,-500.0,0.00059178,120]
[326797417,1715381473603,-500.0,0.00059178,120]
[326797418,1715381473612,-2668.96,0.00059178,120]
[326797419,1715381473621,-500.0,0.00059178,120]
[326797420,1715381473630,-571.02,0.00059178,120]
[326797421,1715381473640,-820.35,0.00059178,120]
[326797422,1715381473649,-500.0,0.00059178,120]
[326797423,1715381473658,-500.0,0.00059178,120]
[326797424,1715381473667,-500.0,0.00059178,120]
[326797425,1715381473676,-500.0,0.00059178,120]
[326797426,1715381473685,-501.21,0.00059178,120]
[326797427,1715381473694,-500.0,0.00059178,120]
[326797428,1715381473703,-500.0,0.00059178,120]
[326797429,1715381473713,-598.13,0.00059178,120]
[326797430,1715381473722,-500.0,0.00059178,120]
[326797431,1715381473731,-967.26,0.00059178,120]
[326797432,1715381473740,-819.54,0.00059178,120]
[326797433,1715381473749,-500.0,0.00059178,120]
[326797434,1715381473758,-326.39,0.00059178,120]
[326797435,1715381473768,-500.0,0.00059178,120]
[326797436,1715381473777,-500.0,0.00059178,120]
[326797437,1715381473785,-500.0,0.00059178,120]
[326797438,1715381473794,-519.83042274,0.00059178,120]
[326797439,1715381473803,-500.0,0.00059178,120]
[326797440,1715381473813,-620.58,0.00059178,120]
[326797441,1715381473822,-500.0,0.00059178,120]
[326797442,1715381473831,-500.0,0.00059178,120]
[326797443,1715381473840,-594.58,0.00059178,120]
[326797444,1715381473850,-500.0,0.00059178,120]
[326797445,1715381473859,-1000.0,0.00059178,120]
[326797446,1715381473869,-819.92,0.00059178,120]
[326797447,1715381473878,-390.14070567,0.00059178,120]
[326797448,1715381473889,-500.0,0.00059178,120]
[326797449,1715381473898,-678.91,0.00059178,120]
[326797450,1715381473908,-500.0,0.00059178,120]
[326797451,1715381473917,-500.0,0.00059178,120]
[326797452,1715381473927,-610.7,0.00059178,120]
[326797453,1715381473936,-648.3,0.00059178,120]
[326797454,1715381473946,-500.0,0.00059178,120]
[326797455,1715381473957,-500.0,0.00059178,120]
[326797456,1715381473973,-500.0,0.00059178,120]
[326797457,1715381473983,-873.9,0.00059178,120]
[326797458,1715381473993,-500.0,0.00059178,120]
[326797459,1715381474003,-780.28,0.00059178,120]
[326797460,1715381474015,-2756.4,0.00059178,120]
[326797461,1715381474024,-500.0,0.00059178,120]
[326797462,1715381474156,-500.0,0.00059178,120]
[326797463,1715381474171,-500.0,0.00059178,120]
[326797464,1715381474180,-500.0,0.00059178,120]
[326797465,1715381474190,-500.0,0.00059178,120]
[326797466,1715381474199,-1210.86,0.00059178,120]
[326797467,1715381474215,-500.0,0.00059178,120]
[326797468,1715381474224,-1070.89,0.00059178,120]
[326797469,1715381474232,-500.0,0.00059178,120]
[326797470,1715381474242,-500.0,0.00059178,120]
[326797471,1715381474253,-500.0,0.00059178,120]
[326797472,1715381474263,-1070.51,0.00059178,120]
[326797473,1715381474272,-500.0,0.00059178,120]
[326797474,1715381474280,-757.61,0.00059178,120]
[326797475,1715381474290,-4210.69,0.00059178,120]
[326797476,1715381474299,-2993.37,0.00059178,120]
[326797477,1715381474308,-551.15,0.00059178,120]
[326797478,1715381474317,-500.0,0.00059178,120]
[326797479,1715381474326,-500.0,0.00059178,120]
[326797480,1715381474335,-500.0,0.00059178,120]
[326797481,1715381474345,-733.98,0.00059178,120]
[326797482,1715381474354,-500.0,0.00059178,120]
[326797483,1715381474363,-513.44021657,0.00059178,120]
[326797484,1715381474372,-500.0,0.00059178,120]
[326797485,1715381474381,-500.0,0.00059178,120]
[326797486,1715381474391,-500.0,0.00059178,120]
[326797487,1715381474400,-4672.91,0.00059178,120]
[326797488,1715381474409,-538.78886734,0.00059178,120]
[326797489,1715381474418,-1818.74,0.00059178,120]
[326797490,1715381474427,-500.0,0.00059178,120]
[326797491,1715381474436,-519.63926837,0.00059178,120]
[326797492,1715381474445,-1000.0,0.00059178,120]
[326797493,1715381474455,-500.0,0.00059178,120]
[326797494,1715381474467,-527.33,0.00059178,120]
[326797495,1715381474476,-500.0,0.00059178,120]
[326797496,1715381474485,-500.0,0.00059178,120]
[326797497,1715381474495,-500.0,0.00059178,120]
[326797498,1715381474504,-500.0,0.00059178,120]
[326797499,1715381474513,-500.0,0.00059178,120]
[326797500,1715381474522,-500.0,0.00059178,120]
[326797501,1715381474531,-500.0,0.00059178,120]
[326797502,1715381474540,-500.0,0.00059178,120]
[326797503,1715381474549,-500.0,0.00059178,120]
[326797504,1715381474558,-500.0,0.00059178,120]
[326797505,1715381474567,-500.0,0.00059178,120]